[Event "DVM U14 2024"]
[Site "Heidelberg"]
[Date "2024.12.29"]
[Round "5"]
[White "Blumenthal Tuset, Sebastian"]
[Black "Yan, Haichen"]
[Result "0-1"]
[ECO "B29"]
[WhiteElo "1732"]
[BlackElo "1732"]
[Annotator "NA"]
[PlyCount "78"]
[EventDate "2024.12.23"]
[EventType "team-tourn"]
[EventRounds "7"]
[EventCountry "GER"]
[SourceTitle "playchess.com"]
[Source "ChessBase"]
[SourceQuality "1"]
[TimeControl "40/5400+30:1800+30"]

1. e4 {[%emt 0:00:09]} c5 {[%emt 0:00:05]} 2. Nf3 {[%emt 0:00:06]} e6 {[%emt 0:00:04]} 3. Nc3 {[%emt 0:00:08]} Nf6 {[%emt 0:00:12]} 4. e5 {[%emt 0:00:35]} Nd5 {[%emt 0:00:09]} 5. Nxd5 {[%emt 0:02:51]} exd5 {[%emt 0:00:08]} 6. d4 {[%emt 0:00:17]} d6 {[%emt 0:02:02]} 7. exd6 {[%emt 0:01:33]} Bxd6 {[%emt 0:00:21]} 8. dxc5 {[%emt 0:00:28]} Bxc5 {[%emt 0:00:13]} 9. Be2 {[%emt 0:01:06]} Be6 {[%emt 0:01:32]} 10. O-O {[%emt 0:01:29]} O-O {[%emt 0:00:16]} 11. c3 {[%emt 0:01:52]} Qc7 {[%emt 0:05:05]} 12. Qc2 {[%emt 0:11:53]} Nd7 {[%emt 0:01:24]} 13. Ng5 {[%emt 0:02:16]} Nf6 {[%emt 0:00:51]} 14. g3 {[%emt 0:02:35]} h6 {[%emt 0:04:14]} 15. Bf4 {[%emt 0:01:28]} Qd7 {[%emt 0:04:48]} 16. Nxe6 {[%emt 0:01:16]} Qxe6 {[%emt 0:00:50]} 17. Bf3 {[%emt 0:01:28]} Ne4 {[%emt 0:08:21]} 18. Rae1 {[%emt 0:03:55]} Rfe8 {[%emt 0:01:49]} 19. Be3 {[%emt 0:01:34]} Bxe3 {[%emt 0:10:43]} 20. Rxe3 {[%emt 0:00:34]} Qc6 {[%emt 0:00:16]} 21. Rd1 {[%emt 0:04:01]} Nf6 {[%emt 0:03:23]} 22. Red3 {[%emt 0:00:46]} Re5 {[%emt 0:20:22]} 23. Qb3 {[%emt 0:01:54]} Rae8 {[%emt 0:05:42]} 24. Kg2 {[%emt 0:02:52]} b5 {[%emt 0:02:23]} 25. Kf1 {[%emt 0:05:29]} Qd7 {[%emt 0:03:54]} 26. Bg2 {[%emt 0:01:54]} Qe6 {[%emt 0:05:48]} 27. Bxd5 {[%emt 0:08:52]} Nxd5 {[%emt 0:00:22]} 28. Qxd5 {[%emt 0:03:25]} Rxd5 {[%emt 0:00:48]} 29. Rxd5 {[%emt 0:00:22]} Qe2+ {[%emt 0:00:20]} 30. Kg2 {[%emt 0:02:25]} Qxb2 {[%emt 0:00:10]} 31. R1d2 {[%emt 0:00:37]} Qxc3 {[%emt 0:00:22]} 32. Rd8 {[%emt 0:00:14]} Rxd8 {[%emt 0:00:23]} 33. Rxd8+ {[%emt 0:00:05]} Kh7 {[%emt 0:00:06]} 34. h4 {[%emt 0:00:43]} Qc2 {[%emt 0:00:59]} 35. Rb8 {[%emt 0:00:45]} a5 {[%emt 0:00:25]} 36. g4 {[%emt 0:00:22]} Qxa2 {[%emt 0:00:30]} 37. Rxb5 {[%emt 0:00:12]} Qa4 {[%emt 0:00:14]} 38. Re5 {[%emt 0:00:50]} Qxg4+ {[%emt 0:00:16]} 39. Kf1 {[%emt 0:00:07]} a4 {[%emt 0:00:48]} 0-1

[Event "DVM U14 2024"]
[Site "Heidelberg"]
[Date "2024.12.29"]
[Round "5"]
[White "Freude, Paul"]
[Black "Ahryzkov, Ivan"]
[Result "1-0"]
[ECO "A05"]
[WhiteElo "1714"]
[BlackElo "1813"]
[Annotator "NA"]
[PlyCount "83"]
[EventDate "2024.12.23"]
[EventType "team-tourn"]
[EventRounds "7"]
[EventCountry "GER"]
[SourceTitle "playchess.com"]
[Source "ChessBase"]
[SourceQuality "1"]
[TimeControl "40/5400+30:1800+30"]

1. e4 {[%emt 0:00:10]} c5 {[%emt 0:00:06]} 2. Nf3 {[%emt 0:00:03]} d6 {[%emt 0:00:04]} 3. g3 {[%emt 0:00:09]} Nc6 {[%emt 0:00:48]} 4. Bg2 {[%emt 0:00:09]} Nf6 {[%emt 0:00:38]} 5. d3 {[%emt 0:00:08]} g6 {[%emt 0:02:25]} 6. O-O {[%emt 0:00:05]} Bg7 {[%emt 0:00:03]} 7. Re1 {[%emt 0:00:16]} Ng4 {[%emt 0:07:56]} 8. c3 {[%emt 0:01:53]} Qb6 {[%emt 0:02:36]} 9. Na3 {[%emt 0:01:59]} Nge5 {[%emt 0:13:30]} 10. Nxe5 {[%emt 0:00:57]} Nxe5 {[%emt 0:00:06]} 11. f4 {[%emt 0:01:34]} Bg4 {[%emt 0:03:14]} 12. Qd2 {[%emt 0:09:12]} Nc6 {[%emt 0:04:35]} 13. Nc4 {[%emt 0:00:53]} Qc7 {[%emt 0:00:07]} 14. Ne3 {[%emt 0:04:31]} Bc8 {[%emt 0:03:46]} 15. Qf2 {[%emt 0:03:13]} O-O {[%emt 0:01:33]} 16. Bd2 {[%emt 0:03:56]} Rb8 {[%emt 0:15:57]} 17. h4 {[%emt 0:03:04]} b5 {[%emt 0:03:19]} 18. h5 {[%emt 0:04:33]} a5 {[%emt 0:11:52]} 19. hxg6 {[%emt 0:01:26]} hxg6 {[%emt 0:00:05]} 20. Bf3 {[%emt 0:07:21]} b4 {[%emt 0:08:37]} 21. Qh2 {[%emt 0:12:25]} bxc3 {[%emt 0:09:18]} 22. Bxc3 {[%emt 0:03:56]} Bxc3 {[%emt 0:00:19]} 23. bxc3 {[%emt 0:00:07]} Kg7 {[%emt 0:00:08]} 24. Qd2 {[%emt 0:02:35]} Ba6 {[%emt 0:02:09]} 25. Kg2 {[%emt 0:00:20]} Qb6 {[%emt 0:00:33]} 26. Rab1 {[%emt 0:02:11]} Qxb1 {[%emt 0:00:23]} 27. Rxb1 {[%emt 0:00:05]} Rxb1 {[%emt 0:00:03]} 28. e5 {[%emt 0:03:02]} Na7 {[%emt 0:01:11]} 29. exd6 {[%emt 0:00:23]} exd6 {[%emt 0:00:07]} 30. c4 {[%emt 0:01:20]} Bb7 {[%emt 0:02:42]} 31. Bxb7 {[%emt 0:00:57]} Rxb7 {[%emt 0:00:02]} 32. Qxa5 {[%emt 0:00:07]} Nc6 {[%emt 0:01:53]} 33. Qc3+ {[%emt 0:00:06]} Kg8 {[%emt 0:00:28]} 34. Qf6 {[%emt 0:00:39]} Nd4 {[%emt 0:02:37]} 35. Qxd6 {[%emt 0:05:50]} Rb2+ {[%emt 0:00:53]} 36. Kh3 {[%emt 0:01:49]} Rc8 {[%emt 0:02:01]} 37. Nd5 {[%emt 0:02:07]} Kg7 {[%emt 0:01:27]} 38. Qf6+ {[%emt 0:00:15]} Kh7 {[%emt 0:00:34]} 39. Qxf7+ {[%emt 0:00:08]} Kh6 {[%emt 0:00:17]} 40. g4 {[%emt 0:00:54]} Rh8 {[%emt 0:00:32]} 41. g5+ {[%emt 0:30:16]} Kh5 {[%emt 0:30:07]} 42. Nf6# {[%emt 0:00:33]} 1-0

[Event "DVM U14 2024"]
[Site "Heidelberg"]
[Date "2024.12.29"]
[Round "5"]
[White "Kaplan, Arne"]
[Black "Hempel, Lorenz"]
[Result "0-1"]
[ECO "B76"]
[WhiteElo "1710"]
[BlackElo "1960"]
[Annotator "NA RC"]
[PlyCount "116"]
[EventDate "2024.12.23"]
[EventType "team-tourn"]
[EventRounds "7"]
[EventCountry "GER"]
[SourceTitle "playchess.com"]
[Source "ChessBase"]
[SourceQuality "1"]
[TimeControl "40/5400+30:1800+30"]

1. e4 {[%emt 0:00:04]} c5 {[%emt 0:00:04]} 2. Nf3 {[%emt 0:00:28]} d6 {[%emt 0:00:29]} 3. d4 {[%emt 0:00:23]} cxd4 {[%emt 0:00:04]} 4. Nxd4 {[%emt 0:00:10]} Nf6 {[%emt 0:00:07]} 5. Nc3 {[%emt 0:00:28]} g6 {[%emt 0:00:13]} 6. Be3 {[%emt 0:00:39]} Bg7 {[%emt 0:00:22]} 7. f3 {[%emt 0:00:24]} O-O {[%emt 0:00:17]} 8. Qd2 {[%emt 0:00:22]} Nc6 {[%emt 0:00:40]} 9. g4 {[%emt 0:02:51]} Be6 {[%emt 0:00:38]} 10. Nxe6 {[%emt 0:02:07]} fxe6 {[%emt 0:00:07]} 11. O-O-O {[%emt 0:02:34]} Ne5 {[%emt 0:05:11]} 12. Be2 {[%emt 0:01:36]} Qc8 {[%emt 0:01:19]} 13. h4 {[%emt 0:07:24]} Nc4 {[%emt 0:08:25]} 14. Bxc4 {[%emt 0:01:14]} Qxc4 {[%emt 0:00:06]} 15. h5 {[%emt 0:05:05]} b5 {[%emt 0:04:02]} 16. Bh6 {[%emt 0:05:05]} b4 {[%emt 0:03:05]} 17. Nb1 {[%emt 0:00:47]} Rac8 {[%emt 0:06:51]} 18. Bxg7 {[%emt 0:06:11]} Kxg7 {[%emt 0:00:03]} 19. hxg6 {[%emt 0:05:04]} hxg6 {[%emt 0:00:53]} 20. b3 {[%emt 0:18:59]} Qc5 {[%emt 0:01:31]} 21. Kb2 {[%emt 0:00:45]} a5 {[%emt 0:14:07]} 22. c3 {[%emt 0:03:55]} Nxe4 {[%emt 0:04:38]} 23. Qh6+ {[%emt 0:10:42]} Kf7 {[%emt 0:00:06]} 24. fxe4 {[%emt 0:04:13]} bxc3+ {[%emt 0:01:46]} 25. Ka1 {[%emt 0:00:10]} Ke8 {[%emt 0:03:35]} 26. Rdf1 {[%emt 0:04:41]} Rxf1 {[%emt 0:01:14]} 27. Rxf1 {[%emt 0:00:08]} Qd4 {[%emt 0:09:01]} 28. Rf8+ {[%emt 0:00:20]} Kd7 {[%emt 0:00:00]} 29. Rxc8 {[%emt 0:00:07]} Kxc8 {[%emt 0:00:10]} 30. Nxc3 {[%emt 0:03:26]} Qxc3+ {[%emt 0:00:12]} 31. Kb1 {[%emt 0:00:03]} Qd3+ {[%emt 0:01:24]} 32. Kc1 {[%emt 0:00:52]} Qxe4 {[%emt 0:00:27]} 33. Qg5 {[%emt 0:00:06]} Qe1+ {[%emt 0:03:07]} 34. Kc2 {[%emt 0:00:33]} Qe2+ {[%emt 0:00:22]} 35. Kb1 {[%emt 0:00:45]} Qe4+ {[%emt 0:04:45]} 36. Kc1 {[%emt 0:00:14]} Qe5 {[%emt 0:00:59]} 37. Qxe7 {[%emt 0:02:38]} Qa1+ {[%emt 0:00:10]} 38. Kc2 {[%emt 0:00:31]} Qxa2+ {[%emt 0:00:05]} 39. Kc3 {[%emt 0:00:04]} Qa1+ {[%emt 0:00:16]} 40. Kc2 {[%emt 0:00:33]} Qa2+ {[%emt 0:01:09]} 41. Kc3 {[%emt 0:30:19]} Qa1+ {[%emt 0:35:09]} 42. Kc2 {[%emt 0:00:08]} Qe5 {[%emt 0:01:28]} 43. Qe8+ {[%emt 0:00:24]} Kc7 {[%emt 0:00:16]} 44. Qxg6 {[%emt 0:00:18]} Kc6 {[%emt 0:00:27]} 45. g5 {[%emt 0:00:26]} Qe2+ {[%emt 0:02:09]} 46. Kc1 {[%emt 0:05:24]} Kd5 {[%emt 0:03:25]} 47. Qg8 {[%emt 0:03:13]} Kd4 {[%emt 0:03:34]} 48. Qb8 {[%emt 0:05:45]} Qe3+ {[%emt 0:04:54]} 49. Kb2 {[%emt 0:00:00]} Qe5 {[%emt 0:00:00]} 50. g6 {[%emt 0:00:00]} Kd5+ {[%emt 0:00:00]} 51. Ka2 {[%emt 0:00:00]} Qh2+ {[%emt 0:00:00]} 52. Ka3 {[%emt 0:00:00]} Qg1 {[%emt 0:00:00]} 53. Qb5+ {[%emt 0:00:00]} Ke4 {[%emt 0:00:00]} 54. Qc4+ {[%emt 0:00:00]} Kf5 {[%emt 0:00:00]} 55. Qd3+ {[%emt 0:00:00]} Kf6 {[%emt 0:00:00]} 56. Qf3+ {[%emt 0:00:00]} Kxg6 {[%emt 0:00:00]} 57. Qe4+ {[%emt 0:00:00]} Kf6 {[%emt 0:00:00]} 58. Qf4+ {[%emt 0:00:00]} Kg7 {[%emt 0:00:00]} 0-1

[Event "DVM U14 2024"]
[Site "Heidelberg"]
[Date "2024.12.29"]
[Round "5"]
[White "Glavev, Danail"]
[Black "Nguyen, Bach Khoi"]
[Result "0-1"]
[ECO "B43"]
[WhiteElo "1690"]
[BlackElo "1590"]
[Annotator "NA RC"]
[PlyCount "100"]
[EventDate "2024.12.23"]
[EventType "team-tourn"]
[EventRounds "7"]
[EventCountry "GER"]
[SourceTitle "playchess.com"]
[Source "ChessBase"]
[SourceQuality "1"]
[TimeControl "40/5400+30:1800+30"]

1. e4 {[%emt 0:00:03]} c5 {[%emt 0:00:05]} 2. Nc3 {[%emt 0:00:04]} a6 {[%emt 0:00:07]} 3. Nf3 {[%emt 0:01:32]} e6 {[%emt 0:00:08]} 4. d4 {[%emt 0:02:02]} cxd4 {[%emt 0:00:05]} 5. Nxd4 {[%emt 0:00:08]} Qc7 {[%emt 0:00:14]} 6. Bd3 {[%emt 0:01:37]} Nf6 {[%emt 0:00:26]} 7. O-O {[%emt 0:01:09]} d6 {[%emt 0:00:58]} 8. Bg5 {[%emt 0:05:28]} Nbd7 {[%emt 0:02:28]} 9. Nf3 {[%emt 0:06:02]} Be7 {[%emt 0:02:32]} 10. Re1 {[%emt 0:02:32]} b5 {[%emt 0:02:21]} 11. Ne2 {[%emt 0:05:36]} Bb7 {[%emt 0:04:26]} 12. Ng3 {[%emt 0:17:44]} O-O {[%emt 0:04:38]} 13. Qe2 {[%emt 0:02:09]} Rac8 {[%emt 0:05:06]} 14. Rac1 {[%emt 0:00:49]} h6 {[%emt 0:08:54]} 15. Bd2 {[%emt 0:05:39]} Nb6 {[%emt 0:05:50]} 16. b3 {[%emt 0:02:44]} Rfd8 {[%emt 0:12:50]} 17. Ba5 {[%emt 0:08:41]} d5 {[%emt 0:06:07]} 18. e5 {[%emt 0:02:46]} Nfd7 {[%emt 0:02:30]} 19. c4 {[%emt 0:03:25]} bxc4 {[%emt 0:11:38]} 20. bxc4 {[%emt 0:00:11]} Qc5 {[%emt 0:03:58]} 21. Bxb6 {[%emt 0:09:56]} Nxb6 {[%emt 0:08:11]} 22. cxd5 {[%emt 0:01:15]} Qxc1 {[%emt 0:00:56]} 23. Rxc1 {[%emt 0:00:06]} Rxc1+ {[%emt 0:00:06]} 24. Nf1 {[%emt 0:00:08]} Nxd5 {[%emt 0:00:56]} 25. Qb2 {[%emt 0:04:23]} Rc7 {[%emt 0:01:31]} 26. h3 {[%emt 0:04:04]} Nf4 {[%emt 0:02:26]} 27. Bc2 {[%emt 0:05:08]} Nxh3+ {[%emt 0:00:56]} 28. gxh3 {[%emt 0:02:13]} Bxf3 {[%emt 0:00:19]} 29. Ne3 {[%emt 0:02:00]} a5 {[%emt 0:04:31]} 30. a4 {[%emt 0:01:44]} Bb4 {[%emt 0:01:08]} 31. Qb3 {[%emt 0:02:02]} Rc3 {[%emt 0:02:37]} 32. Qb1 {[%emt 0:01:01]} Rdc8 {[%emt 0:00:59]} 33. Kh2 {[%emt 0:00:26]} Rxc2 {[%emt 0:01:15]} 34. Nxc2 {[%emt 0:00:59]} Be4 {[%emt 0:00:16]} 35. Qf1 {[%emt 0:01:35]} Rxc2 {[%emt 0:00:31]} 36. Kg3 {[%emt 0:00:12]} Rc3+ {[%emt 0:01:25]} 37. Kh2 {[%emt 0:00:22]} Bf5 {[%emt 0:00:51]} 38. f3 {[%emt 0:00:06]} Bd3 {[%emt 0:01:12]} 39. Qd1 {[%emt 0:01:13]} Rc2+ {[%emt 0:01:18]} 40. Kg3 {[%emt 0:00:13]} Rc3 {[%emt 0:01:44]} 41. Kg2 {[%emt 0:30:29]} Bc5 {[%emt 0:02:55]} 42. h4 {[%emt 0:00:00]} Be3 {[%emt 0:04:40]} 43. Kg3 {[%emt 0:00:00]} g5 {[%emt 0:02:11]} 44. hxg5 {[%emt 0:00:00]} hxg5 {[%emt 0:00:25]} 45. Kg4 {[%emt 0:00:00]} Bf5+ {[%emt 0:08:27]} 46. Kh5 {[%emt 0:00:00]} Rc1 {[%emt 0:01:18]} 47. Qd8+ {[%emt 0:00:00]} Kh7 {[%emt 0:00:12]} 48. f4 {[%emt 0:00:00]} Bxf4 {[%emt 0:01:31]} 49. Qa8 {[%emt 0:00:00]} Rc2 {[%emt 0:00:46]} 50. Qg2 {[%emt 0:00:00]} Bg6+ {[%emt 0:00:17]} 0-1

[Event "DVM U14 2024"]
[Site "Heidelberg"]
[Date "2024.12.29"]
[Round "5"]
[White "Pazar, Ubeyd"]
[Black "Klein, Deniz"]
[Result "1/2-1/2"]
[ECO "E43"]
[WhiteElo "1669"]
[BlackElo "1852"]
[Annotator "NA RC"]
[PlyCount "97"]
[EventDate "2024.12.23"]
[EventType "team-tourn"]
[EventRounds "7"]
[EventCountry "GER"]
[SourceTitle "playchess.com"]
[Source "ChessBase"]
[SourceQuality "1"]
[TimeControl "40/5400+30:1800+30"]

1. d4 {[%emt 0:00:03]} Nf6 {[%emt 0:00:06]} 2. Nf3 {[%emt 0:00:41]} e6 {[%emt 0:02:01]} 3. c4 {[%emt 0:00:59]} b6 {[%emt 0:03:18]} 4. Nc3 {[%emt 0:01:48]} Bb4 {[%emt 0:00:10]} 5. Bd2 {[%emt 0:00:39]} Bb7 {[%emt 0:01:09]} 6. e3 {[%emt 0:00:39]} O-O {[%emt 0:00:43]} 7. Bd3 {[%emt 0:01:14]} c5 {[%emt 0:04:45]} 8. a3 {[%emt 0:03:10]} Bxc3 {[%emt 0:00:11]} 9. Bxc3 {[%emt 0:00:13]} cxd4 {[%emt 0:02:13]} 10. Nxd4 {[%emt 0:01:53]} d5 {[%emt 0:02:42]} 11. Ne2 {[%emt 0:05:53]} Nbd7 {[%emt 0:07:05]} 12. b4 {[%emt 0:07:52]} Rc8 {[%emt 0:16:42]} 13. cxd5 {[%emt 0:03:04]} Nxd5 {[%emt 0:01:57]} 14. Bb2 {[%emt 0:06:09]} Qg5 {[%emt 0:10:53]} 15. h4 {[%emt 0:04:24]} Qe7 {[%emt 0:04:20]} 16. Rh3 {[%emt 0:04:23]} Rfd8 {[%emt 0:09:09]} 17. h5 {[%emt 0:04:49]} h6 {[%emt 0:01:05]} 18. g4 {[%emt 0:03:29]} e5 {[%emt 0:07:34]} 19. Ng3 {[%emt 0:05:08]} Nxb4 {[%emt 0:03:31]} 20. Nf5 {[%emt 0:05:58]} Nxd3+ {[%emt 0:01:11]} 21. Qxd3 {[%emt 0:00:21]} Qe6 {[%emt 0:06:53]} 22. Qd6 {[%emt 0:07:03]} Qxd6 {[%emt 0:04:11]} 23. Nxd6 {[%emt 0:00:07]} Rc7 {[%emt 0:00:22]} 24. Nxb7 {[%emt 0:00:43]} Rxb7 {[%emt 0:00:04]} 25. Rd1 {[%emt 0:00:47]} Re8 {[%emt 0:00:47]} 26. Rh1 {[%emt 0:01:27]} Nc5 {[%emt 0:00:23]} 27. Ke2 {[%emt 0:00:46]} f6 {[%emt 0:02:28]} 28. Rd5 {[%emt 0:01:35]} Rc7 {[%emt 0:02:47]} 29. Bc3 {[%emt 0:05:17]} Rec8 {[%emt 0:02:15]} 30. Bb4 {[%emt 0:01:08]} Ne4 {[%emt 0:00:26]} 31. Kf3 {[%emt 0:03:00]} Nc3 {[%emt 0:01:20]} 32. Bxc3 {[%emt 0:01:48]} Rxc3 {[%emt 0:00:04]} 33. a4 {[%emt 0:00:16]} Ra3 {[%emt 0:00:08]} 34. a5 {[%emt 0:00:44]} Rxa5 {[%emt 0:01:10]} 35. Rxa5 {[%emt 0:00:06]} bxa5 {[%emt 0:00:03]} 36. Ra1 {[%emt 0:00:08]} Rc5 {[%emt 0:00:04]} 37. Ke4 {[%emt 0:00:38]} Kf7 {[%emt 0:02:49]} 38. Kf5 {[%emt 0:00:50]} Rb5 {[%emt 0:01:45]} 39. Rc1 {[%emt 0:00:23]} Rb7 {[%emt 0:00:38]} 40. Rc5 {[%emt 0:00:30]} a4 {[%emt 0:00:29]} 41. Ra5 {[%emt 0:30:05]} a3 {[%emt 0:07:43]} 42. Rxa3 {[%emt 0:00:00]} Re7 {[%emt 0:00:56]} 43. Ke4 {[%emt 0:00:00]} g6 {[%emt 0:00:45]} 44. Ra6 {[%emt 0:00:00]} Rb7 {[%emt 0:02:34]} 45. Ra4 {[%emt 0:00:00]} Rd7 {[%emt 0:00:21]} 46. Ra6 {[%emt 0:00:00]} Rb7 {[%emt 0:00:22]} 47. Ra4 {[%emt 0:00:00]} Rc7 {[%emt 0:07:00]} 48. Ra6 {[%emt 0:00:00]} Rb7 {[%emt 0:00:54]} 49. Ra4 {[%emt 0:02:08]} 1/2-1/2

[Event "DVM U14 2024"]
[Site "Heidelberg"]
[Date "2024.12.29"]
[Round "5"]
[White "Sitnik, Arthur"]
[Black "Scharff, Oskar"]
[Result "1-0"]
[ECO "C29"]
[WhiteElo "1668"]
[BlackElo "1583"]
[Annotator "NA"]
[PlyCount "79"]
[EventDate "2024.12.23"]
[EventType "team-tourn"]
[EventRounds "7"]
[EventCountry "GER"]
[SourceTitle "playchess.com"]
[Source "ChessBase"]
[SourceQuality "1"]
[TimeControl "40/5400+30:1800+30"]

1. e4 {[%emt 0:00:01]} e5 {[%emt 0:00:09]} 2. Nc3 {[%emt 0:00:03]} Nf6 {[%emt 0:00:14]} 3. f4 {[%emt 0:00:03]} d5 {[%emt 0:00:11]} 4. fxe5 {[%emt 0:00:04]} Nxe4 {[%emt 0:00:11]} 5. Qf3 {[%emt 0:00:04]} f5 {[%emt 0:00:28]} 6. d3 {[%emt 0:00:05]} Nxc3 {[%emt 0:00:11]} 7. bxc3 {[%emt 0:00:04]} d4 {[%emt 0:00:46]} 8. Qg3 {[%emt 0:00:07]} Nc6 {[%emt 0:00:48]} 9. Be2 {[%emt 0:00:07]} Be6 {[%emt 0:01:05]} 10. Bf3 {[%emt 0:00:49]} Qd7 {[%emt 0:05:51]} 11. Ne2 {[%emt 0:01:02]} O-O-O {[%emt 0:07:02]} 12. O-O {[%emt 0:00:31]} Bc5 {[%emt 0:17:16]} 13. Kh1 {[%emt 0:06:57]} h6 {[%emt 0:06:04]} 14. Nf4 {[%emt 0:03:24]} Rdf8 {[%emt 0:16:16]} 15. Ng6 {[%emt 0:03:12]} dxc3 {[%emt 0:05:00]} 16. Bxc6 {[%emt 0:04:05]} Qxc6 {[%emt 0:00:20]} 17. d4 {[%emt 0:00:57]} Bb4 {[%emt 0:01:03]} 18. a3 {[%emt 0:00:05]} Qb5 {[%emt 0:03:30]} 19. Be3 {[%emt 0:04:27]} Bxa3 {[%emt 0:02:22]} 20. Rfb1 {[%emt 0:02:58]} Bb2 {[%emt 0:02:31]} 21. Rxa7 {[%emt 0:00:45]} Kb8 {[%emt 0:01:37]} 22. d5 {[%emt 0:08:52]} Bxd5 {[%emt 0:06:33]} 23. Ra3 {[%emt 0:18:32]} Qc4 {[%emt 0:06:02]} 24. Ba7+ {[%emt 0:10:23]} Kc8 {[%emt 0:09:18]} 25. Rb3 {[%emt 0:02:47]} b6 {[%emt 0:04:54]} 26. Bxb6 {[%emt 0:01:49]} cxb6 {[%emt 0:00:14]} 27. Rxb6 {[%emt 0:00:35]} Qc7 {[%emt 0:01:32]} 28. Rd6 {[%emt 0:02:47]} Be4 {[%emt 0:00:18]} 29. Re1 {[%emt 0:01:26]} Bxc2 {[%emt 0:00:23]} 30. Rc6 {[%emt 0:00:30]} Qxc6 {[%emt 0:01:40]} 31. Ne7+ {[%emt 0:00:07]} Kb7 {[%emt 0:00:12]} 32. Nxc6 {[%emt 0:00:05]} Kxc6 {[%emt 0:00:06]} 33. Qg6+ {[%emt 0:01:31]} Kc7 {[%emt 0:02:09]} 34. Qxg7+ {[%emt 0:00:52]} Kc8 {[%emt 0:00:12]} 35. e6 {[%emt 0:00:44]} Ba4 {[%emt 0:00:52]} 36. Qd4 {[%emt 0:00:52]} Bc6 {[%emt 0:00:20]} 37. Qb6 {[%emt 0:01:09]} Bb7 {[%emt 0:00:42]} 38. e7 {[%emt 0:00:52]} Re8 {[%emt 0:00:24]} 39. Qe6+ {[%emt 0:02:49]} Kb8 {[%emt 0:00:17]} 40. Re5 {[%emt 0:04:29]} 1-0

[Event "DVM U14 2024"]
[Site "Heidelberg"]
[Date "2024.12.29"]
[Round "5"]
[White "Derhay, Davyd"]
[Black "Muller, Anker"]
[Result "1/2-1/2"]
[ECO "B13"]
[WhiteElo "1665"]
[BlackElo "1744"]
[Annotator "NA RC"]
[PlyCount "133"]
[EventDate "2024.12.23"]
[EventType "team-tourn"]
[EventRounds "7"]
[EventCountry "GER"]
[SourceTitle "playchess.com"]
[Source "ChessBase"]
[SourceQuality "1"]
[TimeControl "40/5400+30:1800+30"]

1. e4 {[%emt 0:00:01]} c6 {[%emt 0:00:05]} 2. d4 {[%emt 0:00:03]} d5 {[%emt 0:00:07]} 3. exd5 {[%emt 0:00:04]} cxd5 {[%emt 0:00:11]} 4. Bd3 {[%emt 0:00:05]} Nc6 {[%emt 0:00:15]} 5. c3 {[%emt 0:00:05]} Nf6 {[%emt 0:00:14]} 6. h3 {[%emt 0:00:18]} Ne4 {[%emt 0:00:08]} 7. Nf3 {[%emt 0:01:31]} Bf5 {[%emt 0:02:26]} 8. Nh4 {[%emt 0:03:11]} g6 {[%emt 0:01:44]} 9. g4 {[%emt 0:02:53]} Bd7 {[%emt 0:04:54]} 10. Ng2 {[%emt 0:11:40]} e6 {[%emt 0:03:41]} 11. Bf4 {[%emt 0:02:19]} Bg7 {[%emt 0:10:05]} 12. f3 {[%emt 0:05:58]} Nf6 {[%emt 0:01:38]} 13. Nd2 {[%emt 0:03:43]} O-O {[%emt 0:02:52]} 14. O-O {[%emt 0:00:18]} b6 {[%emt 0:02:56]} 15. Bh2 {[%emt 0:05:05]} Ne8 {[%emt 0:02:26]} 16. Qe2 {[%emt 0:04:26]} Bc8 {[%emt 0:10:26]} 17. Rae1 {[%emt 0:12:49]} Nd6 {[%emt 0:03:35]} 18. Bxd6 {[%emt 0:03:35]} Qxd6 {[%emt 0:00:12]} 19. f4 {[%emt 0:00:17]} Bd7 {[%emt 0:07:08]} 20. f5 {[%emt 0:05:49]} exf5 {[%emt 0:02:18]} 21. gxf5 {[%emt 0:00:13]} Rae8 {[%emt 0:06:26]} 22. Qf3 {[%emt 0:05:18]} Rxe1 {[%emt 0:07:16]} 23. Rxe1 {[%emt 0:01:12]} Ne7 {[%emt 0:04:26]} 24. Ne3 {[%emt 0:06:04]} Bxf5 {[%emt 0:05:13]} 25. Bxf5 {[%emt 0:02:06]} Nxf5 {[%emt 0:04:14]} 26. Nxf5 {[%emt 0:02:07]} gxf5 {[%emt 0:00:02]} 27. Rf1 {[%emt 0:03:44]} Qg6+ {[%emt 0:06:01]} 28. Kh1 {[%emt 0:01:12]} Qh6 {[%emt 0:02:13]} 29. Rf2 {[%emt 0:00:32]} f4 {[%emt 0:00:24]} 30. Qxd5 {[%emt 0:01:06]} Qxh3+ {[%emt 0:00:41]} 31. Rh2 {[%emt 0:00:35]} Qe6 {[%emt 0:03:59]} 32. Qf3 {[%emt 0:01:37]} Qe1+ {[%emt 0:00:45]} 33. Nf1 {[%emt 0:00:25]} Qb1 {[%emt 0:02:20]} 34. Qxf4 {[%emt 0:02:50]} Qxa2 {[%emt 0:00:15]} 35. Qf5 {[%emt 0:01:24]} h6 {[%emt 0:00:26]} 36. Qg4 {[%emt 0:01:10]} Qd5+ {[%emt 0:00:21]} 37. Rg2 {[%emt 0:00:28]} Qg5 {[%emt 0:00:49]} 38. Qxg5 {[%emt 0:00:08]} hxg5 {[%emt 0:00:03]} 39. Rxg5 {[%emt 0:00:09]} Re8 {[%emt 0:00:36]} 40. Ng3 {[%emt 0:00:52]} f6 {[%emt 0:01:57]} 41. Rg4 {[%emt 0:30:11]} Kf7 {[%emt 0:30:24]} 42. Nf5 {[%emt 0:01:04]} Re1+ {[%emt 0:02:10]} 43. Kg2 {[%emt 0:01:07]} Bf8 {[%emt 0:00:21]} 44. Kf3 {[%emt 0:00:57]} Rf1+ {[%emt 0:00:00]} 45. Ke4 {[%emt 0:00:00]} Rf2 {[%emt 0:00:00]} 46. b3 {[%emt 0:00:00]} Rb2 {[%emt 0:00:00]} 47. Rh4 {[%emt 0:00:00]} Rxb3 {[%emt 0:00:00]} 48. Rh7+ {[%emt 0:00:00]} Kg6 {[%emt 0:00:00]} 49. Rxa7 {[%emt 0:00:00]} Rxc3 {[%emt 0:00:00]} 50. Rb7 {[%emt 0:00:00]} Rb3 {[%emt 0:00:00]} 51. Ne3 {[%emt 0:00:00]} Bh6 {[%emt 0:00:34]} 52. Nd5 {[%emt 0:00:00]} f5+ {[%emt 0:01:27]} 53. Ke5 {[%emt 0:00:00]} Bg7+ {[%emt 0:00:37]} 54. Ke6 {[%emt 0:00:00]} Bxd4 {[%emt 0:00:42]} 55. Ne7+ {[%emt 0:00:00]} Kg5 {[%emt 0:00:25]} 56. Nxf5 {[%emt 0:00:00]} Bc5 {[%emt 0:01:27]} 57. Ke5 {[%emt 0:00:00]} Kg4 {[%emt 0:01:19]} 58. Rg7+ {[%emt 0:00:00]} Kh3 {[%emt 0:00:57]} 59. Kd5 {[%emt 0:01:14]} Kh2 {[%emt 0:02:09]} 60. Kc6 {[%emt 0:02:32]} Rf3 {[%emt 0:00:23]} 61. Ne7 {[%emt 0:01:04]} Rf6+ {[%emt 0:00:34]} 62. Kb5 {[%emt 0:00:19]} Re6 {[%emt 0:00:31]} 63. Nc8 {[%emt 0:01:13]} Re5 {[%emt 0:00:19]} 64. Rh7+ {[%emt 0:00:47]} Kg2 {[%emt 0:00:16]} 65. Nxb6 {[%emt 0:00:07]} Bf2+ {[%emt 0:00:35]} 66. Ka6 {[%emt 0:00:02]} Re6 67. Rb7 {[%emt 0:00:01]} 1/2-1/2